Cogmind - Beta 14 @@@ ROGUE MODE // 2024.10.07 @ 19:35:12 Player: SnaveSutit Result: Destroyed by G-47 Trooper with Particle Gun Performance ------------- Evolutions (2) 1000 Regions Visited (3) 600 Robots Destroyed (27) 135 Value Destroyed (874) 874 Prototype IDs (1) 20 Alien Tech Used (0) 0 Bonus (0) 0 TOTAL SCORE: 2629 Bonus ------- None Cogmind --------- Core Integrity 0/550 Matter 300/300 Energy 100/100 System Corruption 0% Temperature Cool (9) Movement Core (100) Ox1 Location -8/Materials Parts ------- > --- POWER (1) -------- (None) > --- PROPULSION (2) --- (None) > --- UTILITY (6) ------ (None) > --- WEAPON (2) ------- Great Axe > --- INVENTORY (5) ---- Heat Sink Structural Scanner Structural Scanner Light Armor Plating Peak State ------------ > --- POWER ------------ Light Nuclear Core > --- PROPULSION ------- Wheel Compact Wheel > --- UTILITY ---------- Heat Sink Medium Storage Unit Compact Battery Weight Redist. System Improved Terrain Scanner Hardened Light Armor Plating > --- WEAPON ----------- EM Pulse Cannon Maul > --- INVENTORY -------- Light Deuterium Engine Light Deuterium Engine Flight Unit Flight Unit Heat Sink Structural Scanner Structural Scanner Light Armor Plating Hardlight Generator Datajack [Rating: 23] Favorites ----------- Power Light Deuterium Engine Engine Light Deuterium Engine Power Core Light Nuclear Core Propulsion Compact Wheel Treads Light Treads Wheel Compact Wheel Utility Heat Sink Device Heat Sink Storage Medium Storage Unit Processor Advanced Targeting Computer Protection Hardened Light Armor Plating Weapon Maul Energy Gun EM Pulse Gun Energy Cannon EM Pulse Cannon Ballistic Gun Heavy Assault Rifle Impact Weapon Maul Slashing Weapon Great Axe Special Melee Weapon Datajack Build | -11 -10 -9 -8 ------- Run | Yrd Mat Mat Mat Slots Evolved 4 | . . 2 2 Power . | . . . . Propulsion . | . . . . Utility 4 | . . 2 2 Weapon . | . . . . Parts Attached 42 | 6 1 12 23 Power 6 | 1 . 2 3 Engine 5 | 1 . 2 2 Core 1 | . . . 1 Reactor . | . . . . Propulsion 7 | 2 . 2 3 Treads 2 | 2 . . . Leg . | . . . . Wheel 5 | . . 2 3 Hover . | . . . . Flight . | . . . . Utility 13 | 1 1 4 7 Device 6 | . 1 . 5 Storage 3 | 1 . 2 . Processor 1 | . . . 1 Hackware . | . . . . Protection 3 | . . 2 1 Artifact . | . . . . Weapon 16 | 2 . 4 10 Energy Gun 3 | 2 . 1 . Energy Cannon 5 | . . 1 4 Ballistic Gun 2 | . . 1 1 Ballistic Cannon . | . . . . Launcher . | . . . . Special Weapon . | . . . . Impact Weapon 3 | . . 1 2 Slashing Weapon 2 | . . . 2 Piercing Weapon . | . . . . Special Melee Weapon 1 | . . . 1 Unidentified Prototypes 1 | . . . 1 Parts Lost 17 | . . 4 13 Power 2 | . . . 2 Propulsion 4 | . . 1 3 Utility 6 | . . . 6 Weapon 5 | . . 3 2 Highest Loss Streak 5 | . . 2 5 To Critical Strikes . | . . . . Average Slot Usage (%) 86 | . 93 89 83 Engine 7 | . 14 11 3 Core 2 | . . . 4 Treads 6 | . 28 7 . Wheel 11 | . . 13 13 Device 17 | . 7 11 22 Storage 15 | . 14 21 12 Protection 6 | . . 9 8 Energy Gun 6 | . 28 6 . Energy Cannon 4 | . . 6 5 Ballistic Gun 2 | . . . 4 Impact Weapon 4 | . . 2 6 Peak Build Rating 23 | 6 7 17 23 Average Rating 14 | 4 6 13 18 On Entrance 7 | . 6 7 16 Naked Turns 34 | . . . 34 Heaviest Build 37 | 11 12 28 37 Greatest Support 40 | 40 40 40 38 Greatest Overweight (x) 9 | . . 1 9 Average Overweight (x) . | . . . . Largest Inventory Capacity 10 | 8 8 10 10 Average Capacity 8 | 7 8 8 9 Most Carried 10 | 1 3 8 10 Average Carried 6 | . 1 5 8 Final Capacity 10 | 8 8 10 5 Final Carried 7 | 1 3 7 4 Class Distribution -------------------- 100% | Mutant Dominant Class ---------------- Mutant | -10/Materials Mutant | -9/Materials Mutant | -8/Materials Resources | -11 -10 -9 -8 ----------- Run | Yrd Mat Mat Mat Matter Collected 611 | 199 71 96 245 Remotely . | . . . . Salvage Created 1081 | . 167 473 441 Parts 43 | . 10 24 9 Haulers Intercepted 1 | . 1 . . Recyclers Shooed . | . . . . Parts Field Recycled . | . . . . Retrieved Matter . | . . . . Parts Self-Destructed . | . . . . Prevented . | . . . . Kills | -11 -10 -9 -8 ------- Run | Yrd Mat Mat Mat Combat Hostiles Destroyed 18 | . 2 7 9 Melee 5 | . . 3 2 Guns 2 | . 2 . . Cannons 3 | . . 1 2 Classes Destroyed 10 | . 3 5 2 Builder 1 | . . 1 . Hauler 1 | . 1 . . Recycler 2 | . . 2 . Operator 2 | . . 1 1 Watcher 3 | . 1 1 1 Swarmer 3 | . . 3 . Grunt 6 | . 2 . 4 Sentry 6 | . . 4 2 Specialist 1 | . . . 1 Hunter 2 | . . . 2 Best Kill Streak 4 | . 3 4 3 Combat Bots Only 4 | . 2 4 2 Max Kills in Single Turn 1 | . 1 1 1 Gunslinging . | . . . . Exploded . | . . . . Melee 1 | . . 1 1 Uniques/NPCs Destroyed . | . . . . Combat | -11 -10 -9 -8 -------- Run | Yrd Mat Mat Mat Hostile Shots Fired 203 | . 20 50 133 Missed 51 | . 1 7 43 Damage Taken 2218 | . 257 610 1351 Core 687 | . 66 67 554 Absorbed by Shields 4 | . . . 4 Core Remaining (%) 85 | 100 73 83 . Volleys Fired 65 | . 14 33 18 Largest 2 | . 2 2 2 Hottest 123 | . 80 96 123 Shots Fired 99 | . 28 44 27 Gun 57 | . 28 24 5 Cannon 42 | . . 20 22 Launcher . | . . . . Special . | . . . . Kinetic 6 | . . 1 5 Thermal 30 | . 14 7 9 Explosive . | . . . . Electromagnetic 63 | . 14 36 13 Robot Hit Streak 12 | . 7 12 11 Robot Miss Streak 4 | . 4 2 3 Penetration Max . | . . . . Secondary Targets 1 | . 1 . . Max Gunslinging Chain 1 | . 1 . . Shots Hit Robots 97 | . 17 38 42 Core Hits 24 | . 8 10 6 Critical Kills 1 | . . 1 . Critical Parts Destroyed 3 | . . 1 2 Critical Strikes 5 | . . 2 3 Smash 4 | . . 2 2 Sever 1 | . . . 1 Melee Attacks 36 | . . 8 28 Impact 29 | . . 8 21 Slashing 7 | . . . 7 Piercing . | . . . . Sneak Attacks 1 | . . . 1 Combat Hostiles . | . . . . Follow-up Attacks 3 | . . . 3 Damage Inflicted 2543 | . 251 918 1374 Guns 530 | . 251 226 53 Cannons 824 | . . 351 473 Explosions 157 | . . 157 . Melee 1031 | . . 184 847 Ramming 1 | . . . 1 Kinetic 53 | . . . 53 Thermal 454 | . 101 213 140 Explosive . | . . . . Electromagnetic 1004 | . 150 521 333 Impact 821 | . . 184 637 Slashing 210 | . . . 210 Piercing . | . . . . Highest Corruption . | . . . . Average Corruption . | . . . . Corruption Purged . | . . . . Corruption Blocked . | . . . . Overload Shots . | . . . . Overflow Damage 244 | . . 65 179 Projectiles 64 | . . 32 32 Explosions . | . . . . Melee 180 | . . 33 147 Knockbacks 6 | . . . 6 Impact 6 | . . . 6 Kinetic . | . . . . Secondary . | . . . . Self-Inflicted Damage 46 | . . 46 . Shots 1 | . . 1 . Rammed 1 | . . . 1 Targets Rammed 1 | . . . 1 Kicked . | . . . . Crushed . | . . . . Highest Temperature 339 | . 339 77 81 Average Temperature 76 | . 167 23 27 Received Heat Transfer 510 | . 159 153 198 Siege Activations . | . . . . Robots Corrupted 9 | . . 3 6 Combat Hostiles 8 | . . 3 5 Parts Fried 21 | . 1 8 12 Impact Corruptions 9 | . . 1 8 Robots Melted . | . . . . Combat Hostiles . | . . . . Parts Melted . | . . . . Heat Transferred 772 | . 225 325 222 Parts Sabotaged . | . . . . Parts Stolen . | . . . . Parts Stripped . | . . . . Power Chain Reactions 3 | . . 3 . Alert | -11 -10 -9 -8 ------- Run | Yrd Mat Mat Mat Peak Influence 368 | . 104 333 368 Initial 62 | . . 43 62 Average 129 | . 68 172 141 Maximum Alert Level 1 | . . 1 1 Low Security (%) 76 | 100 100 74 68 Level 1 23 | . . 25 31 Level 2 . | . . . . Level 3 . | . . . . Level 4 . | . . . . Level 5 . | . . . . High Security . | . . . . Max Security . | . . . . Squads Dispatched 8 | . . . 8 Investigation 4 | . . . 4 Extermination . | . . . . Reinforcement 4 | . . . 4 Assault . | . . . . Garrison . | . . . . Intercept . | . . . . Searches Triggered . | . . . . Construction Impeded . | . . . . Haulers Reinforced . | . . . . Active Scanning Responses . | . . . . Cargo Convoy Interrupts . | . . . . Stealth | -11 -10 -9 -8 --------- Run | Yrd Mat Mat Mat Distress Signals . | . . . . Communications Jammed . | . . . . Distress Signals . | . . . . Times Spotted 41 | . 3 13 25 Peak Tracking Total 6 | . 3 5 6 Tactical Retreats 8 | . 1 1 6 Traps | -11 -10 -9 -8 ------- Run | Yrd Mat Mat Mat Traps Triggered 1 | . . . 1 Indirectly . | . . . . Trap Hack Attempts . | . . . . Triggered . | . . . . Disarmed . | . . . . Reprogrammed . | . . . . Reused . | . . . . Traps Extracted . | . . . . Installed . | . . . . Triggered 1 | . . . 1 Machines | -11 -10 -9 -8 ---------- Run | Yrd Mat Mat Mat Machines Disabled 3 | . . 3 . Max in Single Turn 2 | . . 2 . Machines Repaired . | . . . . Machines Dismantled . | . . . . Machines Sabotaged . | . . . . Overloaded Fab Kills . | . . . . Hacking | -11 -10 -9 -8 --------- Run | Yrd Mat Mat Mat Machines Accessed 6 | . 1 2 3 Terminals 6 | . 1 2 3 Fabricators . | . . . . Repair Stations . | . . . . Recycling Units . | . . . . Scanalyzers . | . . . . Garrison Access . | . . . . Total Hacks 14 | . 2 5 7 Successful 3 | . 2 . 1 Failed 11 | . . 5 6 Catastrophic 4 | . . 1 3 Database Lockouts . | . . . . Manual 10 | . . 5 5 Terminals 14 | . 2 5 7 Fabricators . | . . . . Repair Stations . | . . . . Recycling Units . | . . . . Scanalyzers . | . . . . Garrison Access . | . . . . Terminal Hacks 3 | . 2 . 1 Robot Analysis 1 | . . . 1 Hauler Manifests 1 | . 1 . . Zone Layout 1 | . 1 . . Fabricator Hacks . | . . . . Repair Station Hacks . | . . . . Recycling Unit Hacks . | . . . . Scanalyzer . | . . . . Garrison Access Hacks . | . . . . Unauthorized Hacks . | . . . . Terminals . | . . . . Fabricators . | . . . . Repair Stations . | . . . . Recycling Units . | . . . . Scanalyzers . | . . . . Garrison Access . | . . . . Data Cores Recovered 1 | . . 1 . Used . | . . . . Hacking Detections 6 | . 1 2 3 Full Trace Events 2 | . . . 2 Feedback Events . | . . . . Feedback Blocked . | . . . . Robot Schematics Acquired . | . . . . Robots Built . | . . . . Authchips . | . . . . Time . | . . . . Total Robot Build Rating . | . . . . Part Schematics Acquired . | . . . . Parts Built . | . . . . Authchips . | . . . . Time . | . . . . Total Part Build Rating . | . . . . Parts Repaired . | . . . . Time . | . . . . Parts Recycled . | . . . . Recycled Matter . | . . . . Retrieved Matter . | . . . . Retrieved Components . | . . . . Parts Scanalyzed . | . . . . Part Schematics Acquired . | . . . . Parts Damaged . | . . . . Bothacking | -11 -10 -9 -8 ------------ Run | Yrd Mat Mat Mat Used RIF Installer . | . . . . Robots Hacked . | . . . . Non-combat . | . . . . Combat . | . . . . Robot Hacks Applied . | . . . . Relay Couplers Released . | . . . . Fabnet Peak Effective % . | . . . . Robots Rewired . | . . . . Allies Hacked . | . . . . Hacks Repelled . | . . . . Allies | -11 -10 -9 -8 -------- Run | Yrd Mat Mat Mat Total Allies . | . . . . Largest Group . | . . . . Highest-Rated Group . | . . . . Highest-Rated Ally . | . . . . Total Orders . | . . . . Ally Attacks . | . . . . Total Damage . | . . . . Kills . | . . . . Allies Corrupted . | . . . . Allies Melted . | . . . . Intel | -11 -10 -9 -8 ------- Run | Yrd Mat Mat Mat Robot Analysis Total 1 | . . . 1 Derelict Logs Recovered . | . . . . Drone Launches . | . . . . Drone Recoveries . | . . . . Exploration | -11 -10 -9 -8 ------------- Run | Yrd Mat Mat Mat Turns Passed 1587 | 95 250 407 835 Spaces Moved 805 | 57 125 239 384 Core 86 | 5 . . 81 Treads 240 | 52 125 63 . Legs . | . . . . Wheels 479 | . . 176 303 Hover . | . . . . Flight . | . . . . Fastest Speed 50 | 50 160 90 50 Average Speed 118 | 150 160 109 105 Slowest Speed 500 | 160 160 160 500 Overloaded Moves . | . . . . Propulsion Burnouts . | . . . . Robots Hopped . | . . . . Cave-ins Triggered . | . . . . Exploration Rate (%) 17 | 5 19 22 24 Regions Visited 3 Branch Regions . Pre-discovered Areas . | . . . . Known Exits Taken . | . . . . Unknown Exits Taken 3 | 1 1 1 . Scrap Searched . | . . . . Spaces Dug . | . . . . Terrain Destroyed 10 | . . 7 3 Melee . | . . . . Projectile 3 | . . . 3 AOE 7 | . . 7 . Terrain Rammed . | . . . . Walls Destroyed . | . . . . Machines Disabled . | . . . . Actions | -11 -10 -9 -8 --------- Run | Yrd Mat Mat Mat Total 1262 | 63 147 323 729 Wait 289 | . 6 17 266 Move 802 | 56 124 238 384 Hop . | . . . . Pick Up 18 | 1 2 9 6 Fast Attach 21 | 6 1 4 10 Attach 7 | . . 3 4 Detach . | . . . . Swap 14 | . . 5 9 Drop 12 | . . 6 6 Fire 65 | . 14 33 18 Melee 33 | . . 8 25 Ram 1 | . . . 1 Kick . | . . . . Crush . | . . . . Escape Stasis . | . . . . Rewire . | . . . . Trap . | . . . . Miscellaneous . | . . . . Route ------- -11/Scrapyard -10/Materials (discovered 2 exits: *Mat / [Min]) -9/Materials -8/Materials History --------- Turn | Location | Event 3 | -11/Scrapyard | Discovered new exit (range 15) 96 | -11/Scrapyard | Entered Materials 304 | -10/Materials | Discovered new exit (range 11) 304 | -10/Materials | Discovered new exit (range 17) 305 | -10/Materials | Build established: Mutant 346 | -10/Materials | Entered another Materials area 346 | -9/Materials | Evolved 2 slots: Utility x2 748 | -9/Materials | Discovered new exit (range 4) 753 | -9/Materials | Entered another Materials area 753 | -8/Materials | Evolved 2 slots: Utility x2 1230 | -8/Materials | Lost 4 parts (1p2n1u) 1501 | -8/Materials | Lost 5 parts (1p1n2u1w) 1527 | -8/Materials | Released all parts (7) 1531 | -8/Materials | Core integrity fell below 50% 1577 | -8/Materials | Core integrity fell below 20% 1588 | -8/Materials | Destroyed by G-47 Trooper with Particle Gun Last Messages --------------- 01546_ Slug penetrates Wall. 01555_ Connecting with Terminal... 01555_ ALERT: Suspicious activity at Terminal M005. Dispatching Investigation squad. [Achievement: Party Time] 01561_ Acquired Great Axe. 01572_ Great Axe follow-up attack on X-57 Shotgunner. 01576_ Slug penetrates Wall. 01579_ Slug penetrates X-57 Shotgunner. 01581_ X-57 Shotgunner Hrd. Medium Armor Plating severed. 01581_ Great Axe follow-up attack on X-57 Shotgunner. 01581_ X-57 Shotgunner destroyed. 01582_ Slug penetrates Wall. 01584_ Dropped Great Axe. 01585_ Dropped Ion Cannon. 01585_ Slug penetrates Wall. 01585_ Acquired 49 matter. Map ----- +----------------------------------------------------+ | ###?????????????#####+##########?### "" # ##### | | ###???############??# #???# # # | | !##?#??# #??# #########+## " | | ##?#??# #### % # | | ##????# """ + % % # | | ##????# """"" ###"#########+####+## ###### | | ####### """"" #?###?#??# %## #?#??# | | ### # """"" #???#????# ## #????# | | ### # """ #?#??????# ## #????# | | ### # #??????#?# ## ##???####+ | | #### ###+########################"#! ######## | | | | H | | ######### = ### ###+# | | #####+################### #??######"/#####+# | | ## ?????????# # #?## # | | ?# """ ???????# T # #?# """ %""" #*!= | | ?# """ #??????# + #?## "T" ][ """ #![/ | | ?# """ #?#????# # r#??# " " ! """ #!/* | | ## #??????# # #??# # | | ?# "" #??????# # x#??# / ! # | | ?# "T #??????######## #??############### | | ?# "" ?#?????????????# h#?????????#??????##### | | ?# ? ??????????????# #??#?????????????????? | | ?##????###???????######## !#####????????????????? | | ?????????????????# r @ %/][[#????????????????? | | ?????????????????# [[#????????????????? | | ?????????????????# g /#????????????????? | | ?????????????????# ######## /#????????????????? | | ?????????????????# g????????# [[#????????????????? | | ?????????????????# ?????????# [[#????????????????? | | ?????????????????+??????????#####????????????????? | | ?????????????????????????????????????????????????? | | ?????????????????????????????????????????????????? | | ?????????????????????????????????????????????????? | | ?????????????????????????????????????????????????? | | ?????????????????????????????????????????????????? | | ?????????????????????????????????????????????????? | | ?????????????????????????????????????????????????? | | ?????????????????????????????????????????????????? | | ?????????????????????????????????????????????????? | | ?????????????????????????????????????????????????? | | ?????????????????????????????????????????????????? | | ?????????????????????????????????????????????????? | | ?????????????????????????????????????????????????? | | ?????????????????????????????????????????????????? | | ?????????????????????????????????????????????????? | | ?????????????????????????????????????????????????? | | ?????????????????????????????????????????????????? | | ?????????????????????????????????????????????????? | +----------------------------------------------------+ Best States ------------- Heat Dissipation 41 Energy Generation 14 Energy Capacity 360 Matter Stores 300 Matter Capacity 300 Sight Range 16 Terrain Scan Range 16 Terrain Scan Density 10 Additional Mass Support 6 Armor Coverage 300 Evasion (%) 50 Targeting Accuracy 8 Recoil Reduction 2 Particle Charging 15 Item Schematics ----------------- None Robot Schematics ------------------ None Fabricated ------------ Nothing Alien Tech Used ----------------- None Achievements -------------- Party Time Challenges ------------ None Game ------ Seed ZhirovCatalystManipulator Manual? 0 Play Time 00:19:32 Cumulative 20.0 hours Start 2024.10.07 @ 19:15:35 End 2024.10.07 @ 19:35:12 Sessions 1 Manual Loads 0 Difficulty Rogue Special Mode None Game No. 27 Rogue 27 Adventurer 0 Explorer 0 Win Type - Total 0 Types 0/0/0/0/0/0/0/0/0 Lore% 15 Gallery% 26 Achievement% 22 Wizard Run 0 Options --------- Layout 1 ASCII 0 Keyboard 0 Movement Mouse Keybinds 0 Fullscreen 1 Font 32/SmallcapsGlow Map View 50x40 Zoom Use 7% Tactical HUD 1 Map Filters NONE Filters NONE Steam 1 RUN: 73471782-d921-4720-ac60-b41d570c90a7